[Event "Titled Tuesday Blitz January 03 Late 2023"]
[White "Sanchez, Robert"]
[Black "Rostomyan, Mikayel"]
[WhiteFideId "2034360"]
[BlackFideId "13313754"]
[WhiteElo "1966"]
[BlackElo "2222"]
[Result "1-0"]
[Round "05"]
[TimeControl "180+2"]
[Date "2023.01.03"]
[WhiteClock "0:00:04"]
[BlackClock "0:00:05"]

1. e4 {[%clk 0:02:56]}  c6 {[%clk 0:02:59]} 2. d4 {[%clk 0:02:54]}  d5 {[%clk 0:02:59]} 3. exd5 {[%clk 0:02:53]}  cxd5 {[%clk 0:02:59]} 4. Nf3 {[%clk 0:02:54]}  Nc6 {[%clk 0:02:59]} 5. Bf4 {[%clk 0:02:53]}  Bg4 {[%clk 0:02:55]} 6. Be2 {[%clk 0:02:52]}  e6 {[%clk 0:02:54]} 7. O-O {[%clk 0:02:52]}  Bd6 {[%clk 0:02:54]} 8. Bg5 {[%clk 0:02:51]}  Nge7 {[%clk 0:02:50]} 9. c3 {[%clk 0:02:51]}  h6 {[%clk 0:02:50]} 10. Bh4 {[%clk 0:02:48]}  f5 {[%clk 0:02:45]} 11. h3 {[%clk 0:02:35]}  Bxf3 {[%clk 0:02:22]} 12. Bxf3 {[%clk 0:02:34]}  Qc7 {[%clk 0:02:23]} 13. Bxe7 {[%clk 0:02:33]}  Qxe7 {[%clk 0:02:16]} 14. Re1 {[%clk 0:02:33]}  O-O-O {[%clk 0:02:03]} 15. Bxd5 {[%clk 0:02:26]}  Bh2+ {[%clk 0:02:02]} 16. Kxh2 {[%clk 0:02:26]}  Qd6+ {[%clk 0:01:58]} 17. Kg1 {[%clk 0:02:25]}  Qxd5 {[%clk 0:01:51]} 18. Nd2 {[%clk 0:02:22]}  e5 {[%clk 0:01:51]} 19. Qh5 {[%clk 0:01:44]}  exd4 {[%clk 0:01:41]} 20. cxd4 {[%clk 0:01:44]}  g6 {[%clk 0:01:40]} 21. Qe2 {[%clk 0:01:27]}  Nxd4 {[%clk 0:01:37]} 22. Qe7 {[%clk 0:01:21]}  Kb8 {[%clk 0:01:31]} 23. Rac1 {[%clk 0:01:20]}  Rc8 {[%clk 0:00:49]} 24. Nb3 {[%clk 0:01:18]}  Nxb3 {[%clk 0:00:43]} 25. axb3 {[%clk 0:01:18]}  Qxb3 {[%clk 0:00:42]} 26. Qd6+ {[%clk 0:01:10]}  Ka8 {[%clk 0:00:39]} 27. Qxg6 {[%clk 0:01:09]}  Qxb2 {[%clk 0:00:37]} 28. Rxc8+ {[%clk 0:01:08]}  Rxc8 {[%clk 0:00:38]} 29. Qxf5 {[%clk 0:01:09]}  Qc3 {[%clk 0:00:38]} 30. Re3 {[%clk 0:01:03]}  Qc1+ {[%clk 0:00:36]} 31. Kh2 {[%clk 0:01:03]}  Qc7+ {[%clk 0:00:37]} 32. g3 {[%clk 0:00:59]}  a6 {[%clk 0:00:34]} 33. Re6 {[%clk 0:00:53]}  Qc2 {[%clk 0:00:21]} 34. Qf3 {[%clk 0:00:44]}  Ka7 {[%clk 0:00:13]} 35. Rxh6 {[%clk 0:00:40]}  Qc5 {[%clk 0:00:13]} 36. Rh7 {[%clk 0:00:35]}  Qb6 {[%clk 0:00:08]} 37. Rf7 {[%clk 0:00:29]}  Rc2 {[%clk 0:00:08]} 38. h4 {[%clk 0:00:26]}  a5 {[%clk 0:00:05]} 39. h5 {[%clk 0:00:24]}  a4 {[%clk 0:00:05]} 40. Rf6 {[%clk 0:00:22]}  Qc5 {[%clk 0:00:04]} 41. h6 {[%clk 0:00:18]}  a3 {[%clk 0:00:03]} 42. Rf5 {[%clk 0:00:15]}  Qb6 {[%clk 0:00:02]} 43. Qxa3+ {[%clk 0:00:15]}  Qa6 {[%clk 0:00:02]} 44. Qxa6+ {[%clk 0:00:13]}  Kxa6 {[%clk 0:00:03]} 45. h7 {[%clk 0:00:12]}  Rc8 {[%clk 0:00:04]} 46. Rh5 {[%clk 0:00:07]}  Rh8 {[%clk 0:00:04]} 47. g4 {[%clk 0:00:07]}  b5 {[%clk 0:00:05]} 48. g5 {[%clk 0:00:07]}  b4 {[%clk 0:00:06]} 49. g6 {[%clk 0:00:06]}  b3 {[%clk 0:00:05]} 50. Kg3 {[%clk 0:00:06]}  b2 {[%clk 0:00:05]} 51. Rh1 {[%clk 0:00:06]}  Rc8 {[%clk 0:00:04]} 52. Rb1 {[%clk 0:00:03]}  Rc3+ {[%clk 0:00:03]} 53. Kg4 {[%clk 0:00:03]}  Rc4+ {[%clk 0:00:04]} 54. f4 {[%clk 0:00:04]}  Rc5 {[%clk 0:00:05]} 55. h8=Q {[%clk 0:00:04]} 1-0


[Site "https://www.chess.com"]

[Event "Titled Tuesday Blitz January 03 Late 2023"]
[White "Paspuel, Trosky"]
[Black "Volkov, Maksim"]
[WhiteFideId "3602150"]
[BlackFideId "54123070"]
[WhiteElo "1721"]
[BlackElo "2258"]
[Result "1-0"]
[Round "05"]
[TimeControl "180+2"]
[Date "2023.01.03"]
[WhiteClock "0:01:30"]
[BlackClock "0:00:47"]

1. c4 {[%clk 0:02:55]}  e6 {[%clk 0:02:59]} 2. Nc3 {[%clk 0:02:54]}  d5 {[%clk 0:03:00]} 3. d4 {[%clk 0:02:55]}  c6 {[%clk 0:02:59]} 4. e3 {[%clk 0:02:50]}  Nf6 {[%clk 0:02:59]} 5. Nf3 {[%clk 0:02:50]}  Nbd7 {[%clk 0:03:00]} 6. Qc2 {[%clk 0:02:50]}  Bd6 {[%clk 0:02:59]} 7. g4 {[%clk 0:02:51]}  h6 {[%clk 0:02:56]} 8. Rg1 {[%clk 0:02:48]}  e5 {[%clk 0:02:55]} 9. cxd5 {[%clk 0:02:42]}  cxd5 {[%clk 0:02:55]} 10. Nb5 {[%clk 0:02:38]}  Bb8 {[%clk 0:02:55]} 11. g5 {[%clk 0:02:39]}  hxg5 {[%clk 0:02:46]} 12. Nxg5 {[%clk 0:02:39]}  a6 {[%clk 0:02:36]} 13. Ne6 {[%clk 0:02:35]}  axb5 {[%clk 0:01:43]} 14. Nxd8 {[%clk 0:02:28]}  Kxd8 {[%clk 0:01:44]} 15. Bxb5 {[%clk 0:02:28]}  exd4 {[%clk 0:01:42]} 16. exd4 {[%clk 0:02:21]}  g6 {[%clk 0:01:34]} 17. Bg5 {[%clk 0:02:20]}  Bxh2 {[%clk 0:01:29]} 18. Bxd7 {[%clk 0:02:14]}  Kxd7 {[%clk 0:01:21]} 19. Bxf6 {[%clk 0:02:09]}  Re8+ {[%clk 0:01:20]} 20. Kf1 {[%clk 0:02:05]}  Ke6 {[%clk 0:01:12]} 21. Be5 {[%clk 0:01:58]}  Bxg1 {[%clk 0:01:11]} 22. Kxg1 {[%clk 0:01:59]}  f6 {[%clk 0:01:10]} 23. Bg3 {[%clk 0:01:56]}  Kf7 {[%clk 0:01:08]} 24. Qb3 {[%clk 0:01:40]}  Rd8 {[%clk 0:01:02]} 25. Rc1 {[%clk 0:01:36]}  g5 {[%clk 0:00:59]} 26. Rc7+ {[%clk 0:01:35]}  Kg6 {[%clk 0:00:59]} 27. Qb4 {[%clk 0:01:31]}  Bf5 {[%clk 0:00:54]} 28. Qe7 {[%clk 0:01:30]}  Rf8 {[%clk 0:00:47]} 29. Qh7# {[%clk 0:01:30]} 1-0


[Site "https://www.chess.com"]

[Event "Titled Tuesday Blitz January 03 Late 2023"]
[White "Kulkarni, Rakesh"]
[Black "Dourerassou, Jonathan"]
[WhiteFideId "5037077"]
[BlackFideId "628050"]
[WhiteElo "2321"]
[BlackElo "2414"]
[Result "0-1"]
[Round "05"]
[TimeControl "180+2"]
[Date "2023.01.03"]
[WhiteClock "0:00:32"]
[BlackClock "0:00:57"]

1. e4 {[%clk 0:02:57]}  e6 {[%clk 0:02:42]} 2. d4 {[%clk 0:02:45]}  d5 {[%clk 0:02:42]} 3. Bd3 {[%clk 0:02:46]}  dxe4 {[%clk 0:02:41]} 4. Bxe4 {[%clk 0:02:47]}  Nf6 {[%clk 0:02:42]} 5. Bf3 {[%clk 0:02:47]}  c5 {[%clk 0:02:39]} 6. Ne2 {[%clk 0:02:48]}  Nc6 {[%clk 0:02:38]} 7. Be3 {[%clk 0:02:48]}  cxd4 {[%clk 0:02:36]} 8. Nxd4 {[%clk 0:02:49]}  Bd7 {[%clk 0:02:34]} 9. Nc3 {[%clk 0:02:48]}  Bb4 {[%clk 0:02:34]} 10. O-O {[%clk 0:02:47]}  O-O {[%clk 0:02:34]} 11. Nxc6 {[%clk 0:02:43]}  Bxc6 {[%clk 0:02:33]} 12. Bxc6 {[%clk 0:02:44]}  bxc6 {[%clk 0:02:33]} 13. Qf3 {[%clk 0:02:44]}  Nd5 {[%clk 0:02:26]} 14. Ne4 {[%clk 0:02:41]}  f5 {[%clk 0:02:23]} 15. Nc5 {[%clk 0:02:17]}  f4 {[%clk 0:02:02]} 16. Nxe6 {[%clk 0:01:59]}  fxe3 {[%clk 0:01:59]} 17. Qg4 {[%clk 0:01:44]}  Qe7 {[%clk 0:01:52]} 18. Nxf8 {[%clk 0:01:40]}  e2 {[%clk 0:01:44]} 19. Ne6 {[%clk 0:01:36]}  exf1=Q+ {[%clk 0:01:41]} 20. Rxf1 {[%clk 0:01:37]}  Re8 {[%clk 0:01:37]} 21. Nd4 {[%clk 0:01:36]}  Qf6 {[%clk 0:01:31]} 22. Qd7 {[%clk 0:01:22]}  Rf8 {[%clk 0:01:15]} 23. Nxc6 {[%clk 0:01:15]}  Ne3 {[%clk 0:01:09]} 24. Nxb4 {[%clk 0:00:37]}  Nxf1 {[%clk 0:01:09]} 25. Qd5+ {[%clk 0:00:36]}  Kh8 {[%clk 0:01:08]} 26. Nd3 {[%clk 0:00:36]}  Nd2 {[%clk 0:01:04]} 27. h3 {[%clk 0:00:36]}  h6 {[%clk 0:00:59]} 28. Ne5 {[%clk 0:00:34]}  Qxf2+ {[%clk 0:00:58]} 29. Kh1 {[%clk 0:00:32]}  Qe1+ {[%clk 0:00:56]} 30. Kh2 {[%clk 0:00:32]}  Nf1+ {[%clk 0:00:57]} 31. Kh1 {[%clk 0:00:32]}  Ne3+ {[%clk 0:00:57]} 0-1


[Site "https://www.chess.com"]

[Event "Titled Tuesday Blitz January 03 Late 2023"]
[White "Wieczorek, Oskar"]
[Black "Reprintsev, Alexander"]
[WhiteFideId "1133950"]
[BlackFideId "14100541"]
[WhiteElo "2512"]
[BlackElo "2253"]
[Result "1-0"]
[Round "05"]
[TimeControl "180+2"]
[Date "2023.01.03"]
[WhiteClock "0:00:05"]
[BlackClock "0:00:02"]

1. e4 {[%clk 0:02:55]}  d5 {[%clk 0:02:42]} 2. exd5 {[%clk 0:02:50]}  Qxd5 {[%clk 0:02:41]} 3. Nc3 {[%clk 0:02:50]}  Qa5 {[%clk 0:02:39]} 4. d4 {[%clk 0:02:50]}  Nf6 {[%clk 0:02:38]} 5. Nf3 {[%clk 0:02:50]}  Nc6 {[%clk 0:02:37]} 6. Bd2 {[%clk 0:02:47]}  a6 {[%clk 0:02:14]} 7. Bc4 {[%clk 0:02:23]}  Qh5 {[%clk 0:02:11]} 8. Ng5 {[%clk 0:01:58]}  Qxd1+ {[%clk 0:01:22]} 9. Rxd1 {[%clk 0:01:59]}  e6 {[%clk 0:01:21]} 10. Bf4 {[%clk 0:01:21]}  Bd6 {[%clk 0:01:08]} 11. Bg3 {[%clk 0:01:15]}  h6 {[%clk 0:01:06]} 12. Nge4 {[%clk 0:01:13]}  Nxe4 {[%clk 0:01:04]} 13. Nxe4 {[%clk 0:01:14]}  Bxg3 {[%clk 0:01:04]} 14. hxg3 {[%clk 0:01:13]}  b6 {[%clk 0:00:54]} 15. g4 {[%clk 0:00:55]}  Bb7 {[%clk 0:00:52]} 16. f3 {[%clk 0:00:44]}  O-O-O {[%clk 0:00:52]} 17. c3 {[%clk 0:00:45]}  Na5 {[%clk 0:00:44]} 18. Bd3 {[%clk 0:00:44]}  f5 {[%clk 0:00:37]} 19. Nf2 {[%clk 0:00:37]}  g6 {[%clk 0:00:34]} 20. O-O {[%clk 0:00:34]}  h5 {[%clk 0:00:32]} 21. g5 {[%clk 0:00:31]}  Bd5 {[%clk 0:00:18]} 22. b3 {[%clk 0:00:28]}  Kb7 {[%clk 0:00:17]} 23. Rfe1 {[%clk 0:00:28]}  Rhe8 {[%clk 0:00:17]} 24. Nh3 {[%clk 0:00:27]}  c5 {[%clk 0:00:14]} 25. dxc5 {[%clk 0:00:21]}  e5 {[%clk 0:00:13]} 26. cxb6 {[%clk 0:00:13]}  Kxb6 {[%clk 0:00:13]} 27. c4 {[%clk 0:00:13]}  Bc6 {[%clk 0:00:13]} 28. Bc2 {[%clk 0:00:14]}  Nb7 {[%clk 0:00:10]} 29. b4 {[%clk 0:00:09]}  Kc7 {[%clk 0:00:09]} 30. a3 {[%clk 0:00:08]}  Nd6 {[%clk 0:00:08]} 31. Bb3 {[%clk 0:00:07]}  Nf7 {[%clk 0:00:06]} 32. Rxd8 {[%clk 0:00:06]}  Rxd8 {[%clk 0:00:05]} 33. Rd1 {[%clk 0:00:06]}  Rxd1+ {[%clk 0:00:05]} 34. Bxd1 {[%clk 0:00:07]}  e4 {[%clk 0:00:06]} 35. Kf2 {[%clk 0:00:07]}  Ne5 {[%clk 0:00:04]} 36. Nf4 {[%clk 0:00:06]}  exf3 {[%clk 0:00:03]} 37. gxf3 {[%clk 0:00:06]}  Be8 {[%clk 0:00:02]} 38. c5 {[%clk 0:00:05]}  Bf7 {[%clk 0:00:02]} 39. Be2 {[%clk 0:00:05]}  Kb7 {[%clk 0:00:03]} 40. Bf1 {[%clk 0:00:05]}  h4 {[%clk 0:00:02]} 41. Be2 {[%clk 0:00:04]}  Ka7 {[%clk 0:00:02]} 42. Kg2 {[%clk 0:00:05]} 1-0


[Site "https://www.chess.com"]

[Event "Titled Tuesday Blitz January 03 Late 2023"]
[White "Yashmetov, Mikhail"]
[Black "Vlassov, Nikolai"]
[WhiteFideId "24198900"]
[BlackFideId "4103360"]
[WhiteElo "2323"]
[BlackElo "2283"]
[Result "0-1"]
[Round "05"]
[TimeControl "180+2"]
[Date "2023.01.03"]
[WhiteClock "0:00:04"]
[BlackClock "0:00:05"]

1. d4 {[%clk 0:03:00]}  Nf6 {[%clk 0:02:59]} 2. c4 {[%clk 0:03:00]}  Nc6 {[%clk 0:02:59]} 3. Nf3 {[%clk 0:03:00]}  e6 {[%clk 0:02:59]} 4. Nc3 {[%clk 0:03:00]}  Bb4 {[%clk 0:02:59]} 5. Bd2 {[%clk 0:03:00]}  O-O {[%clk 0:02:58]} 6. g3 {[%clk 0:03:00]}  d6 {[%clk 0:02:58]} 7. Bg2 {[%clk 0:03:00]}  e5 {[%clk 0:02:58]} 8. d5 {[%clk 0:02:51]}  Ne7 {[%clk 0:02:59]} 9. O-O {[%clk 0:02:49]}  c6 {[%clk 0:02:59]} 10. Ne1 {[%clk 0:02:29]}  cxd5 {[%clk 0:02:57]} 11. Nxd5 {[%clk 0:02:25]}  Nexd5 {[%clk 0:02:55]} 12. cxd5 {[%clk 0:02:23]}  Bc5 {[%clk 0:02:47]} 13. Nd3 {[%clk 0:02:19]}  Bb6 {[%clk 0:02:47]} 14. e4 {[%clk 0:01:57]}  Ne8 {[%clk 0:02:28]} 15. Kh1 {[%clk 0:01:38]}  f5 {[%clk 0:02:24]} 16. f4 {[%clk 0:01:37]}  fxe4 {[%clk 0:02:25]} 17. Bxe4 {[%clk 0:01:37]}  Nf6 {[%clk 0:02:25]} 18. Bg2 {[%clk 0:01:32]}  e4 {[%clk 0:02:24]} 19. Nb4 {[%clk 0:01:04]}  Bg4 {[%clk 0:01:53]} 20. Qe1 {[%clk 0:00:56]}  Re8 {[%clk 0:01:23]} 21. Be3 {[%clk 0:00:55]}  Rc8 {[%clk 0:01:16]} 22. h3 {[%clk 0:00:38]}  Bf3 {[%clk 0:01:11]} 23. Rc1 {[%clk 0:00:30]}  Qd7 {[%clk 0:01:01]} 24. Kh2 {[%clk 0:00:23]}  Ba5 {[%clk 0:00:42]} 25. a3 {[%clk 0:00:21]}  Nxd5 {[%clk 0:00:39]} 26. Bd4 {[%clk 0:00:14]}  Bxg2 {[%clk 0:00:32]} 27. Kxg2 {[%clk 0:00:14]}  e3 {[%clk 0:00:29]} 28. Qe2 {[%clk 0:00:10]}  Bxb4 {[%clk 0:00:25]} 29. axb4 {[%clk 0:00:10]}  Nxb4 {[%clk 0:00:20]} 30. Rxc8 {[%clk 0:00:09]}  Qxc8 {[%clk 0:00:18]} 31. Bxe3 {[%clk 0:00:05]}  Nd5 {[%clk 0:00:14]} 32. Rf3 {[%clk 0:00:04]}  Qc6 {[%clk 0:00:12]} 33. Kf2 {[%clk 0:00:03]}  Nxe3 {[%clk 0:00:10]} 34. Rxe3 {[%clk 0:00:04]}  Qc5 {[%clk 0:00:10]} 35. Kf3 {[%clk 0:00:04]}  Rxe3+ {[%clk 0:00:10]} 36. Qxe3 {[%clk 0:00:05]}  Qxe3+ {[%clk 0:00:11]} 37. Kxe3 {[%clk 0:00:06]}  Kf7 {[%clk 0:00:11]} 38. Kd4 {[%clk 0:00:07]}  Ke6 {[%clk 0:00:12]} 39. g4 {[%clk 0:00:07]}  g6 {[%clk 0:00:12]} 40. h4 {[%clk 0:00:08]}  a5 {[%clk 0:00:09]} 41. Kc4 {[%clk 0:00:07]}  h5 {[%clk 0:00:04]} 42. f5+ {[%clk 0:00:06]}  gxf5 {[%clk 0:00:05]} 43. gxh5 {[%clk 0:00:06]}  d5+ {[%clk 0:00:04]} 44. Kd4 {[%clk 0:00:06]}  Kf6 {[%clk 0:00:03]} 45. Kxd5 {[%clk 0:00:05]}  b5 {[%clk 0:00:04]} 46. Kc5 {[%clk 0:00:04]}  f4 {[%clk 0:00:04]} 47. Kd4 {[%clk 0:00:03]}  a4 {[%clk 0:00:05]} 48. Ke4 {[%clk 0:00:03]}  b4 {[%clk 0:00:05]} 49. h6 {[%clk 0:00:04]}  a3 {[%clk 0:00:05]} 50. h7 {[%clk 0:00:04]}  Kg7 {[%clk 0:00:05]} 0-1


[Site "https://www.chess.com"]

[Event "Titled Tuesday Blitz January 03 Late 2023"]
[White "reevecanada"]
[Black "Haydon, David L"]
[BlackFideId "415405"]
[WhiteElo "2486"]
[BlackElo "2253"]
[Result "0-1"]
[Round "05"]
[TimeControl "180+2"]
[Date "2023.01.03"]
[WhiteClock "0:00:24"]
[BlackClock "0:00:36"]

1. e4 {[%clk 0:03:00]}  c6 {[%clk 0:03:00]} 2. c4 {[%clk 0:02:59]}  d5 {[%clk 0:03:01]} 3. cxd5 {[%clk 0:03:00]}  cxd5 {[%clk 0:03:02]} 4. exd5 {[%clk 0:03:01]}  Qxd5 {[%clk 0:03:02]} 5. Nc3 {[%clk 0:03:01]}  Qd8 {[%clk 0:03:02]} 6. d4 {[%clk 0:02:59]}  Nf6 {[%clk 0:03:02]} 7. Nf3 {[%clk 0:02:58]}  g6 {[%clk 0:03:02]} 8. Bc4 {[%clk 0:02:56]}  Bg7 {[%clk 0:03:03]} 9. O-O {[%clk 0:02:57]}  O-O {[%clk 0:03:03]} 10. h3 {[%clk 0:02:57]}  a6 {[%clk 0:03:03]} 11. Re1 {[%clk 0:02:58]}  b5 {[%clk 0:03:03]} 12. Bb3 {[%clk 0:02:58]}  Bb7 {[%clk 0:03:03]} 13. Bf4 {[%clk 0:02:57]}  Nc6 {[%clk 0:03:03]} 14. a3 {[%clk 0:02:55]}  Na5 {[%clk 0:03:02]} 15. Ba2 {[%clk 0:02:54]}  Rc8 {[%clk 0:03:03]} 16. Qe2 {[%clk 0:02:53]}  e6 {[%clk 0:02:59]} 17. Rad1 {[%clk 0:02:52]}  Nc4 {[%clk 0:02:56]} 18. Bg5 {[%clk 0:02:49]}  h6 {[%clk 0:02:54]} 19. Bh4 {[%clk 0:02:44]}  g5 {[%clk 0:02:51]} 20. Bg3 {[%clk 0:02:43]}  Nxa3 {[%clk 0:02:45]} 21. Ne5 {[%clk 0:02:41]}  Nc4 {[%clk 0:02:39]} 22. Nxc4 {[%clk 0:02:37]}  bxc4 {[%clk 0:02:37]} 23. Bxc4 {[%clk 0:02:36]}  a5 {[%clk 0:02:27]} 24. Be5 {[%clk 0:02:33]}  Qb6 {[%clk 0:02:19]} 25. Ba2 {[%clk 0:02:30]}  Qc6 {[%clk 0:02:11]} 26. f3 {[%clk 0:02:28]}  Qb6 {[%clk 0:02:08]} 27. Bb1 {[%clk 0:02:25]}  Nd5 {[%clk 0:02:00]} 28. Qd3 {[%clk 0:02:05]}  f5 {[%clk 0:01:58]} 29. Qe2 {[%clk 0:01:52]}  Rxc3 {[%clk 0:01:49]} 30. bxc3 {[%clk 0:01:34]}  Nxc3 {[%clk 0:01:48]} 31. Qc4 {[%clk 0:01:02]}  Rc8 {[%clk 0:01:47]} 32. Qd3 {[%clk 0:00:59]}  Bxe5 {[%clk 0:01:33]} 33. Rxe5 {[%clk 0:00:53]}  Nxd1 {[%clk 0:01:32]} 34. Qxd1 {[%clk 0:00:54]}  Rd8 {[%clk 0:01:28]} 35. Qe1 {[%clk 0:00:46]}  Qxd4+ {[%clk 0:01:17]} 36. Kh1 {[%clk 0:00:44]}  Bd5 {[%clk 0:01:15]} 37. Rxe6 {[%clk 0:00:36]}  Bxe6 {[%clk 0:01:14]} 38. Qxe6+ {[%clk 0:00:37]}  Kf8 {[%clk 0:01:15]} 39. Qxf5+ {[%clk 0:00:36]}  Ke7 {[%clk 0:01:11]} 40. Qh7+ {[%clk 0:00:35]}  Ke6 {[%clk 0:01:10]} 41. Qxh6+ {[%clk 0:00:35]}  Qf6 {[%clk 0:01:10]} 42. Ba2+ {[%clk 0:00:30]}  Ke5 {[%clk 0:01:10]} 43. f4+ {[%clk 0:00:27]}  gxf4 {[%clk 0:01:02]} 44. Qh5+ {[%clk 0:00:25]}  Kd4 {[%clk 0:01:01]} 45. Qxa5 {[%clk 0:00:23]}  Qd6 {[%clk 0:00:56]} 46. Qd2+ {[%clk 0:00:23]}  Ke5 {[%clk 0:00:56]} 47. Qe2+ {[%clk 0:00:23]}  Kf6 {[%clk 0:00:55]} 48. Qb2+ {[%clk 0:00:22]}  Qe5 {[%clk 0:00:54]} 49. Qb6+ {[%clk 0:00:22]}  Rd6 {[%clk 0:00:54]} 50. Qf2 {[%clk 0:00:19]}  Rd1+ {[%clk 0:00:46]} 51. Kh2 {[%clk 0:00:19]}  f3+ {[%clk 0:00:47]} 52. Qg3 {[%clk 0:00:19]}  Rh1+ {[%clk 0:00:46]} 53. Kxh1 {[%clk 0:00:19]}  Qxg3 {[%clk 0:00:47]} 54. gxf3 {[%clk 0:00:19]}  Qxh3+ {[%clk 0:00:47]} 55. Kg1 {[%clk 0:00:19]}  Qxf3 {[%clk 0:00:48]} 56. Kh2 {[%clk 0:00:19]}  Qf2+ {[%clk 0:00:47]} 57. Kh1 {[%clk 0:00:20]}  Qxa2 {[%clk 0:00:47]} 58. Kg1 {[%clk 0:00:21]}  Kg5 {[%clk 0:00:47]} 59. Kh1 {[%clk 0:00:22]}  Kf4 {[%clk 0:00:47]} 60. Kg1 {[%clk 0:00:23]}  Kg3 {[%clk 0:00:47]} 61. Kh1 {[%clk 0:00:24]}  Qa1# {[%clk 0:00:36]} 0-1


[Site "https://www.chess.com"]

[Event "Titled Tuesday Blitz January 03 Late 2023"]
[White "Blanco Acevedo, Cristobal Jose"]
[Black "Hsu, Li Yang"]
[WhiteFideId "3900525"]
[BlackFideId "5800080"]
[WhiteElo "2310"]
[BlackElo "2427"]
[Result "1-0"]
[Round "05"]
[TimeControl "180+2"]
[Date "2023.01.03"]
[WhiteClock "0:01:26"]
[BlackClock "0:00:19"]

1. e4 {[%clk 0:03:00]}  c6 {[%clk 0:02:59]} 2. d4 {[%clk 0:02:59]}  d5 {[%clk 0:03:00]} 3. exd5 {[%clk 0:03:00]}  cxd5 {[%clk 0:03:01]} 4. Bd3 {[%clk 0:03:00]}  Nc6 {[%clk 0:03:01]} 5. c3 {[%clk 0:02:59]}  Qc7 {[%clk 0:03:00]} 6. Ne2 {[%clk 0:02:59]}  Bg4 {[%clk 0:02:57]} 7. Qb3 {[%clk 0:02:58]}  Bxe2 {[%clk 0:02:53]} 8. Kxe2 {[%clk 0:02:50]}  e6 {[%clk 0:02:52]} 9. g3 {[%clk 0:02:44]}  Bd6 {[%clk 0:02:52]} 10. Re1 {[%clk 0:02:43]}  Nge7 {[%clk 0:02:46]} 11. Kf1 {[%clk 0:02:42]}  h5 {[%clk 0:02:32]} 12. Kg2 {[%clk 0:02:39]}  h4 {[%clk 0:02:31]} 13. Na3 {[%clk 0:02:38]}  a6 {[%clk 0:02:31]} 14. Nc2 {[%clk 0:02:34]}  hxg3 {[%clk 0:02:30]} 15. hxg3 {[%clk 0:02:28]}  O-O-O {[%clk 0:02:29]} 16. Ne3 {[%clk 0:02:15]}  Rh5 {[%clk 0:02:26]} 17. Bd2 {[%clk 0:02:14]}  Rdh8 {[%clk 0:02:24]} 18. Rh1 {[%clk 0:02:15]}  f5 {[%clk 0:01:57]} 19. Rxh5 {[%clk 0:02:10]}  Rxh5 {[%clk 0:01:58]} 20. Rh1 {[%clk 0:01:55]}  Rxh1 {[%clk 0:01:58]} 21. Kxh1 {[%clk 0:01:55]}  f4 {[%clk 0:01:59]} 22. gxf4 {[%clk 0:01:55]}  Bxf4 {[%clk 0:01:59]} 23. Qd1 {[%clk 0:01:55]}  g5 {[%clk 0:01:05]} 24. Qg4 {[%clk 0:01:54]}  Nd8 {[%clk 0:00:59]} 25. Be1 {[%clk 0:01:45]}  Nec6 {[%clk 0:00:43]} 26. Nxd5 {[%clk 0:01:40]}  Qf7 {[%clk 0:00:36]} 27. Nxf4 {[%clk 0:01:36]}  gxf4 {[%clk 0:00:36]} 28. Bd2 {[%clk 0:01:34]}  Kb8 {[%clk 0:00:26]} 29. Qxf4+ {[%clk 0:01:33]}  Ka7 {[%clk 0:00:23]} 30. Qxf7 {[%clk 0:01:33]}  Nxf7 {[%clk 0:00:24]} 31. Bf4 {[%clk 0:01:33]}  b5 {[%clk 0:00:23]} 32. Be4 {[%clk 0:01:30]}  Ncd8 {[%clk 0:00:21]} 33. Kg2 {[%clk 0:01:27]}  Kb6 {[%clk 0:00:21]} 34. Kg3 {[%clk 0:01:27]}  a5 {[%clk 0:00:20]} 35. Kg4 {[%clk 0:01:26]}  b4 {[%clk 0:00:19]} 36. c4 {[%clk 0:01:26]} 1-0


[Site "https://www.chess.com"]

[Event "Titled Tuesday Blitz January 03 Late 2023"]
[White "Martins, Bruno Andre Leite"]
[Black "Blanco Ronquillo, Humberto L."]
[WhiteFideId "1942255"]
[BlackFideId "3504239"]
[WhiteElo "2348"]
[BlackElo "2442"]
[Result "1-0"]
[Round "05"]
[TimeControl "180+2"]
[Date "2023.01.03"]
[WhiteClock "0:00:16"]
[BlackClock "0:00:03"]

1. e4 {[%clk 0:02:34]}  e5 {[%clk 0:02:59]} 2. Nf3 {[%clk 0:02:32]}  Nc6 {[%clk 0:02:59]} 3. d4 {[%clk 0:02:32]}  exd4 {[%clk 0:02:59]} 4. Nxd4 {[%clk 0:02:33]}  Bc5 {[%clk 0:02:58]} 5. Nxc6 {[%clk 0:02:33]}  Qf6 {[%clk 0:02:58]} 6. Qf3 {[%clk 0:02:34]}  Qxf3 {[%clk 0:02:58]} 7. gxf3 {[%clk 0:02:32]}  bxc6 {[%clk 0:02:59]} 8. Be3 {[%clk 0:02:31]}  Bb6 {[%clk 0:02:48]} 9. Rg1 {[%clk 0:01:49]}  g6 {[%clk 0:02:48]} 10. Nd2 {[%clk 0:01:47]}  Ne7 {[%clk 0:02:46]} 11. Bh6 {[%clk 0:01:42]}  d6 {[%clk 0:02:28]} 12. Bg7 {[%clk 0:01:36]}  Rg8 {[%clk 0:02:27]} 13. Bf6 {[%clk 0:01:37]}  Be6 {[%clk 0:02:20]} 14. Nc4 {[%clk 0:01:34]}  Kd7 {[%clk 0:01:55]} 15. Rd1 {[%clk 0:01:26]}  Rgb8 {[%clk 0:01:23]} 16. a4 {[%clk 0:01:26]}  Ke8 {[%clk 0:01:17]} 17. b3 {[%clk 0:01:21]}  Bc5 {[%clk 0:01:14]} 18. Bd3 {[%clk 0:01:19]}  Ng8 {[%clk 0:01:07]} 19. Bb2 {[%clk 0:01:16]}  Kf8 {[%clk 0:01:06]} 20. h4 {[%clk 0:01:10]}  h5 {[%clk 0:01:04]} 21. Ke2 {[%clk 0:01:06]}  Re8 {[%clk 0:01:03]} 22. Kf1 {[%clk 0:01:00]}  Bh3+ {[%clk 0:01:01]} 23. Ke2 {[%clk 0:01:00]}  d5 {[%clk 0:01:02]} 24. Ne5 {[%clk 0:00:58]}  Bd6 {[%clk 0:00:29]} 25. Nxc6 {[%clk 0:00:57]}  Bd7 {[%clk 0:00:25]} 26. Nd4 {[%clk 0:00:57]}  Be5 {[%clk 0:00:22]} 27. Rg5 {[%clk 0:00:52]}  Rad8 {[%clk 0:00:19]} 28. Rxe5 {[%clk 0:00:48]}  Rxe5 {[%clk 0:00:20]} 29. Nc6 {[%clk 0:00:47]}  Bxc6 {[%clk 0:00:11]} 30. Bxe5 {[%clk 0:00:48]}  dxe4 {[%clk 0:00:10]} 31. fxe4 {[%clk 0:00:48]}  Bxe4 {[%clk 0:00:11]} 32. Bxe4 {[%clk 0:00:21]}  Re8 {[%clk 0:00:11]} 33. f4 {[%clk 0:00:21]}  f6 {[%clk 0:00:11]} 34. Bxg6 {[%clk 0:00:22]}  Re7 {[%clk 0:00:10]} 35. Rd5 {[%clk 0:00:22]}  fxe5 {[%clk 0:00:09]} 36. fxe5 {[%clk 0:00:23]}  Nh6 {[%clk 0:00:09]} 37. Kf3 {[%clk 0:00:21]}  Ng4 {[%clk 0:00:08]} 38. Kf4 {[%clk 0:00:21]}  Nf2 {[%clk 0:00:04]} 39. Bxh5 {[%clk 0:00:21]}  Kg7 {[%clk 0:00:04]} 40. Rd2 {[%clk 0:00:18]}  Nh3+ {[%clk 0:00:04]} 41. Kf5 {[%clk 0:00:19]}  Kh6 {[%clk 0:00:03]} 42. Bg6 {[%clk 0:00:17]}  Ng1 {[%clk 0:00:03]} 43. Rf2 {[%clk 0:00:16]}  c5 {[%clk 0:00:02]} 44. Kf6 {[%clk 0:00:15]}  Nh3 {[%clk 0:00:02]} 45. Kxe7 {[%clk 0:00:14]}  Nxf2 {[%clk 0:00:03]} 46. Bf5 {[%clk 0:00:15]}  Nd1 {[%clk 0:00:02]} 47. e6 {[%clk 0:00:15]}  Ne3 {[%clk 0:00:03]} 48. Bh3 {[%clk 0:00:15]}  Kg7 {[%clk 0:00:03]} 49. Kd8 {[%clk 0:00:15]}  Nd5 {[%clk 0:00:02]} 50. e7 {[%clk 0:00:16]}  Nxe7 {[%clk 0:00:03]} 51. Kxe7 {[%clk 0:00:16]}  c4 {[%clk 0:00:03]} 52. bxc4 {[%clk 0:00:16]} 1-0


[Site "https://www.chess.com"]